bitfinex-derivatives/quotes_BTCF0:USTF0_20241223
["timestamp","ask_amount","ask_price","bid_price","bid_amount"]
[1734977058149,0.3608,93576.0,93566.0,0.13496517]
[1734977058150,0.223204,93573.0,93566.0,0.13496517]
[1734977058351,0.223204,93573.0,93566.0,0.18845917]
[1734977058646,0.223204,93573.0,93563.0,0.3608]
[1734977059049,0.223204,93573.0,93563.0,0.3708]
[1734977059644,0.3608,93576.0,93571.0,0.053491]
[1734977059845,0.3608,93576.0,93570.0,0.053491]
[1734977060046,0.3186,93584.0,93570.0,0.053491]
[1734977061246,0.3186,93584.0,93570.0,0.055491]
[1734977061450,0.3186,93584.0,93570.0,0.057491]
[1734977062152,0.3186,93584.0,93574.0,0.13496517]
[1734977062841,0.61526001,93590.0,93574.0,0.13496517]
[1734977062842,0.00056001,93590.0,93574.0,0.13496517]
[1734977063047,0.3608,93594.0,93578.0,0.053487]
[1734977063243,0.3608,93594.0,93584.0,0.13496517]
[1734977064343,0.3608,93594.0,93584.0,0.18844817]
[1734977064539,0.3608,93594.0,93585.0,0.053483]
[1734977064540,0.001,93594.0,93585.0,0.053483]
[1734977064745,0.001,93594.0,93592.0,0.053479]
[1734977065247,0.3129,93599.0,93592.0,0.053479]
[1734977065447,0.001,93594.0,93593.0,0.053478]
[1734977065748,0.001,93594.0,93587.0,0.3608]
[1734977065951,0.3608,93593.0,93584.0,0.14556681]
[1734977066448,0.3608,93585.0,93584.0,0.14556681]
[1734977066649,0.3608,93593.0,93584.0,0.01060164]
[1734977066843,0.3608,93593.0,93582.0,0.053484]
[1734977067045,0.3608,93593.0,93583.0,0.13496517]
[1734977067353,0.001,93594.0,93583.0,0.13496517]
[1734977067655,0.002,93594.0,93590.0,0.05348]
[1734977068561,0.001,93594.0,93590.0,0.05348]
[1734977069356,0.001,93594.0,93586.0,0.053482]
[1734977070054,0.002,93594.0,93586.0,0.053482]
[1734977070944,0.001,93594.0,93586.0,0.053482]
[1734977071458,0.001,93594.0,93583.0,0.49576517]
[1734977071653,0.001,93594.0,93583.0,0.50670228]
[1734977072155,0.3608,93590.0,93583.0,0.50670228]
[1734977072347,0.001,93594.0,93583.0,0.50670228]
[1734977073855,0.67426001,93599.0,93583.0,0.50670228]
[1734977074050,0.001,93594.0,93583.0,0.50670228]
[1734977074253,0.001,93594.0,93584.0,0.08982387]
[1734977075561,0.001,93594.0,93586.0,0.053482]
[1734977075854,0.001,93594.0,93593.0,0.053478]
[1734977076256,0.001,93594.0,93585.0,0.6516]
[1734977076257,0.001,93594.0,93586.0,0.053482]
[1734977076453,0.3608,93599.0,93585.0,0.9452]
[1734977076653,0.3608,93599.0,93597.0,0.053476]
[1734977077760,0.3608,93599.0,93586.0,0.2878]
[1734977077965,0.3638,93599.0,93597.0,0.004]
[1734977078446,0.3638,93599.0,93597.0,0.001]
[1734977079356,0.3608,93599.0,93597.0,0.003]
[1734977080756,0.3608,93598.0,93580.0,0.13470659]
[1734977080966,0.3608,93586.0,93570.0,0.18819759]
[1734977081154,0.3608,93577.0,93574.0,0.01090138]
[1734977081350,0.00056001,93585.0,93574.0,0.053489]
[1734977081555,0.3608,93586.0,93576.0,0.3608]
[1734977082058,0.5489,93599.0,93580.0,0.009]
[1734977082059,0.3608,93594.0,93580.0,0.009]
[1734977082264,0.3608,93594.0,93584.0,0.13470659]
[1734977082964,0.3608,93585.0,93580.0,0.009]
[1734977083467,0.3608,93583.0,93574.0,0.004]
[1734977083658,0.3608,93575.0,93574.0,0.004]
[1734977084165,0.3608,93575.0,93573.0,0.01266933]
[1734977086766,0.3608,93575.0,93573.0,0.01366933]
[1734977087363,0.3628,93575.0,93573.0,0.01366933]
[1734977087566,0.3628,93575.0,93558.0,0.19069613]
[1734977087567,0.46886729,93574.0,93558.0,0.19069613]
[1734977087762,0.7216,93559.0,93558.0,0.19069613]
[1734977087956,0.7216,93559.0,93525.0,0.3608]
[1734977088163,1.0216,93559.0,93525.0,0.3608]
[1734977088457,0.3608,93545.0,93544.0,0.00160338]
[1734977089865,0.3628,93545.0,93544.0,0.00160338]
[1734977090364,0.3628,93545.0,93522.0,0.64312]
[1734977090572,0.3608,93532.0,93522.0,0.35952]
[1734977090762,0.3608,93532.0,93522.0,0.37026468]
[1734977090962,0.3608,93524.0,93522.0,0.37026468]
[1734977091371,0.15943271,93523.0,93522.0,0.37026468]
[1734977092065,0.15943271,93523.0,93522.0,0.37226468]
[1734977092757,0.15943271,93523.0,93522.0,0.37026468]
[1734977092956,0.3608,93524.0,93522.0,0.37026468]
[1734977094270,0.004,93523.0,93522.0,0.37026468]
[1734977094769,0.06891187,93531.0,93522.0,0.37026468]
[1734977094967,0.003,93524.0,93522.0,0.37026468]
[1734977095456,0.004,93524.0,93522.0,0.37026468]
[1734977095660,0.004,93524.0,93523.0,0.3608]
[1734977096369,0.003,93524.0,93523.0,0.3608]
[1734977096571,0.3608,93539.0,93523.0,0.3608]
[1734977096763,0.3608,93530.0,93523.0,0.2868]
[1734977097268,0.3608,93530.0,93523.0,0.344318]
[1734977097864,0.3608,93530.0,93523.0,0.2908]
[1734977098173,0.3608,93530.0,93523.0,0.004]
[1734977098472,0.3608,93530.0,93523.0,0.005]
[1734977099571,0.3608,93530.0,93523.0,0.003]
[1734977099774,0.3608,93530.0,93523.0,0.004]
[1734977099972,0.3608,93530.0,93523.0,0.003]
[1734977100871,0.3608,93528.0,93523.0,0.003]
[1734977101176,0.3608,93528.0,93516.0,0.01092582]
[1734977101476,0.3608,93528.0,93518.0,0.13470659]
[1734977101679,0.3608,93528.0,93510.0,0.053526]
[1734977101680,0.158942,93526.0,93510.0,0.13470659]
[1734977101865,0.158942,93526.0,93523.0,0.001]
[1734977102660,0.158942,93526.0,93516.0,0.08994529]
[1734977103180,0.3638,93528.0,93516.0,0.08994529]
[1734977103373,0.3638,93528.0,93521.0,0.053519]
[1734977103677,0.158942,93535.0,93523.0,0.002]
[1734977103979,0.158942,93535.0,93525.0,0.08994529]
[1734977104573,0.158942,93536.0,93525.0,0.08994529]
[1734977104777,0.158942,93536.0,93532.0,0.053513]
[1734977104971,0.10267708,93536.0,93533.0,0.538]
[1734977105171,0.3608,93558.0,93533.0,0.538]
[1734977105371,0.3608,93558.0,93549.0,0.053503]
[1734977105571,0.3608,93558.0,93550.0,0.053503]
[1734977105774,0.3608,93568.0,93550.0,0.3608]
[1734977105978,0.3608,93568.0,93559.0,0.053498]
[1734977106177,0.2153097,93569.0,93558.0,0.08994529]
[1734977106479,0.20336333,93569.0,93567.0,0.053493]
[1734977106683,0.20336333,93569.0,93560.0,0.340293]
[1734977107069,0.20336333,93569.0,93550.0,0.3718002]
[1734977107384,0.3608,93552.0,93540.0,0.09154888]
[1734977107577,0.3608,93541.0,93540.0,0.09154888]
[1734977107777,0.053508,93542.0,93540.0,0.09154888]
[1734977107778,0.053508,93542.0,93540.0,0.00160359]
[1734977107973,0.032068,93542.0,93540.0,0.00160359]
[1734977108284,0.032068,93542.0,93540.0,0.01223231]
[1734977108482,0.032068,93542.0,93540.0,0.00260359]
[1734977108976,0.032068,93542.0,93540.0,0.001]
[1734977109373,0.2571,93541.0,93526.0,0.35972]
[1734977109682,0.3608,93527.0,93526.0,0.35972]
[1734977110774,0.3608,93527.0,93526.0,0.37064179]
[1734977111486,0.3608,93527.0,93526.0,0.37464179]
[1734977111778,0.3608,93527.0,93526.0,0.37664179]
[1734977113177,0.3608,93549.0,93526.0,0.37664179]
[1734977113382,0.3608,93549.0,93534.0,0.13489434]
[1734977113585,0.053507,93543.0,93534.0,0.13489434]
[1734977113981,0.3608,93549.0,93534.0,0.13489434]
[1734977114181,0.3608,93549.0,93535.0,0.053511]
[1734977114383,0.053504,93548.0,93537.0,0.05351]
[1734977115084,0.053497,93560.0,93536.0,0.3608]
[1734977115274,0.053497,93560.0,93550.0,0.13489434]
[1734977115476,0.053499,93558.0,93553.0,0.053501]
[1734977115878,0.3608,93562.0,93553.0,0.053501]
[1734977116077,0.0535,93555.0,93550.0,0.13489434]
[1734977116698,0.32097956,93562.0,93550.0,0.49569434]
[1734977116902,0.3608,93572.0,93559.0,0.3608]
[1734977117194,0.3608,93572.0,93564.0,0.053495]
[1734977117506,0.3608,93572.0,93562.0,0.13489434]
[1734977117695,0.3608,93572.0,93567.0,0.053493]
[1734977118005,0.053491,93571.0,93567.0,0.053493]
[1734977118604,0.3608,93586.0,93562.0,0.13489434]
[1734977118900,0.053499,93557.0,93550.0,0.13989434]
[1734977119103,0.3394,93554.0,93550.0,0.13989434]
[1734977119302,0.053496,93562.0,93552.0,0.053502]
[1734977119508,0.3608,93563.0,93559.0,0.003]
[1734977119804,0.053496,93563.0,93559.0,0.003]
[1734977120010,0.053496,93563.0,93557.0,0.053499]
[1734977120201,0.053496,93563.0,93550.0,0.14863324]
[1734977120398,0.053496,93563.0,93558.0,0.053498]
[1734977121092,0.053496,93563.0,93559.0,0.053498]
[1734977122009,0.053492,93570.0,93558.0,0.001]
[1734977122308,0.053493,93568.0,93566.0,0.053494]
[1734977122503,0.3608,93586.0,93564.0,0.3608]
[1734977122705,0.053487,93579.0,93576.0,0.13489434]
[1734977122908,0.3608,93595.0,93579.0,0.053486]
[1734977123408,0.00334561,93594.0,93585.0,0.13489434]
[1734977123607,0.00334561,93593.0,93585.0,0.13489434]
[1734977123795,0.3608,93602.0,93589.0,0.05348]
[1734977124000,0.3608,93602.0,93591.0,0.053479]
[1734977124710,0.00334518,93599.0,93592.0,0.3608]
[1734977124902,0.00334518,93598.0,93595.0,0.053477]
[1734977125095,0.00334518,93597.0,93595.0,0.053477]
[1734977125302,0.00334518,93596.0,93595.0,0.053477]
[1734977125903,0.00334518,93596.0,93595.0,0.062477]
[1734977126105,0.2778,93623.0,93595.0,0.062477]
[1734977126409,0.04495312,93858.0,93605.0,0.3608]
[1734977126410,0.13489434,93620.0,93605.0,0.3608]
[1734977126603,0.13489434,93620.0,93595.0,0.2958]
[1734977126803,0.43489434,93620.0,93595.0,0.2958]
[1734977127005,0.3608,93624.0,93604.0,0.3608]
[1734977127414,0.3608,93624.0,93614.0,0.3608]
[1734977127603,0.3608,93633.0,93614.0,0.3608]
[1734977128209,0.6608,93633.0,93614.0,0.3608]
[1734977128410,0.10681079,93632.0,93614.0,0.3608]
[1734977128810,0.001,93620.0,93614.0,0.3608]
[1734977129212,0.10681079,93632.0,93614.0,0.3608]
[1734977129413,0.3608,93625.0,93597.0,0.3608]
[1734977129615,0.13489434,93620.0,93597.0,0.3608]
[1734977129815,0.6608,93625.0,93614.0,0.002]
[1734977130220,0.1068182,93624.0,93614.0,0.002]
[1734977130519,0.1068182,93624.0,93605.0,0.3608]
[1734977130814,0.4068182,93624.0,93605.0,0.3608]
[1734977131016,0.4068182,93624.0,93614.0,0.001]
[1734977131515,0.3608,93625.0,93614.0,0.001]
[1734977131516,0.3608,93625.0,93615.0,0.3608]
[1734977131718,0.3608,93625.0,93615.0,0.2868]
[1734977133116,0.3608,93625.0,93615.0,0.2888]
[1734977133615,0.3608,93625.0,93615.0,0.001]
[1734977134111,0.10681478,93624.0,93615.0,0.001]
[1734977134615,0.3608,93617.0,93615.0,0.001]
[1734977134917,0.3608,93617.0,93615.0,0.002]
[1734977135118,0.6608,93617.0,93589.0,0.01]
[1734977135309,0.3608,93609.0,93589.0,0.01]
[1734977136614,0.3608,93609.0,93586.0,0.2968]
[1734977136813,0.3618,93609.0,93589.0,0.007]
[1734977137014,0.3618,93609.0,93589.0,0.009]
[1734977137813,0.3618,93609.0,93589.0,0.007]
[1734977138014,0.49569434,93600.0,93589.0,0.01]
[1734977138213,0.00334584,93599.0,93589.0,0.003]
[1734977138414,0.00334584,93598.0,93589.0,0.012]
[1734977138614,0.00334584,93597.0,93589.0,0.012]
[1734977138819,0.00334584,93596.0,93589.0,0.003]
[1734977139020,0.00334584,93595.0,93589.0,0.009]
[1734977139217,0.00334584,93594.0,93589.0,0.009]
[1734977139412,0.00334584,93593.0,93589.0,0.009]
[1734977139713,0.00334584,93592.0,93589.0,0.003]
[1734977140019,0.00334584,93591.0,93589.0,0.003]
[1734977140218,0.004,93595.0,93590.0,0.29948]
[1734977140414,0.3608,93627.0,93594.0,0.3608]
[1734977140817,0.003,93598.0,93594.0,0.3608]
[1734977142223,0.49569434,93610.0,93594.0,0.3628]
[1734977142422,0.3608,93602.0,93594.0,0.003]
[1734977143427,0.3608,93602.0,93594.0,0.008]
[1734977143725,0.3608,93602.0,93594.0,0.006]
[1734977144414,0.3608,93602.0,93587.0,0.3605]
[1734977144616,0.13489434,93600.0,93584.0,0.00880102]
[1734977144821,0.13489434,93600.0,93594.0,0.002]
[1734977145017,0.13489434,93600.0,93594.0,0.011]
[1734977145528,0.3608,93600.0,93575.0,0.6162]
[1734977145723,0.3608,93600.0,93587.0,0.009]
[1734977146229,0.3608,93600.0,93594.0,0.003]
[1734977146620,0.3608,93614.0,93594.0,0.003]
[1734977146821,0.3608,93614.0,93591.0,0.2898]
[1734977147128,0.3608,93606.0,93594.0,0.001]
[1734977147722,0.3608,93606.0,93583.0,0.414284]
[1734977147926,0.3608,93606.0,93591.0,0.001]
[1734977147927,0.001,93600.0,93591.0,0.001]
[1734977148520,0.3608,93606.0,93594.0,0.003]
[1734977148730,0.3608,93606.0,93594.0,0.004]
[1734977148929,0.3608,93606.0,93594.0,0.001]
[1734977149131,0.007,93600.0,93594.0,0.001]
[1734977149630,0.3608,93606.0,93594.0,0.004]
[1734977150337,0.003,93600.0,93594.0,0.003]
[1734977151031,0.3608,93606.0,93594.0,0.003]
[1734977152115,0.0033458,93605.0,93594.0,0.003]
[1734977152321,0.003,93600.0,93591.0,0.01072155]
[1734977152627,0.0033458,93599.0,93594.0,0.001]
[1734977152821,0.011,93600.0,93594.0,0.001]
[1734977153017,0.003,93600.0,93578.0,0.35964]
[1734977153624,0.011,93600.0,93591.0,0.001]
[1734977153827,0.3608,93596.0,93591.0,0.001]
[1734977154423,0.3608,93592.0,93591.0,0.001]
[1734977154819,0.66414648,93592.0,93578.0,0.32717511]
[1734977155122,0.66414648,93592.0,93561.0,0.2594]
[1734977155123,0.3608,93579.0,93562.0,0.2506]
[1734977155323,0.00334648,93578.0,93562.0,0.2506]
[1734977155523,0.00334648,93577.0,93572.0,0.01248353]
[1734977155726,0.00334648,93576.0,93572.0,0.01248353]
[1734977155926,0.3608,93579.0,93572.0,0.01088047]
[1734977156126,0.3608,93579.0,93562.0,0.2506]
[1734977156922,0.3608,93579.0,93562.0,0.26135923]
[1734977157123,0.13482799,93572.0,93562.0,0.26135923]
[1734977157330,0.3608,93579.0,93562.0,0.26135923]
[1734977157623,0.3608,93570.0,93562.0,0.26135923]
[1734977157835,0.3608,93577.0,93562.0,0.26135923]
[1734977158031,0.3608,93577.0,93562.0,0.26235923]
[1734977158631,0.3608,93577.0,93567.0,0.13482799]
[1734977158829,0.002,93570.0,93562.0,0.62215923]
[1734977160426,0.3618,93577.0,93562.0,0.62215923]
[1734977160827,0.3608,93567.0,93562.0,0.26135923]
[1734977161234,0.3608,93567.0,93554.0,0.3608]
[1734977161421,0.3608,93567.0,93546.0,0.35952]
[1734977161422,0.13482799,93564.0,93562.0,0.002]
[1734977161625,0.3608,93563.0,93540.0,0.01076364]
[1734977161826,0.3608,93546.0,93531.0,0.253]
[1734977162125,0.3608,93537.0,93526.0,0.244]
[1734977162325,0.3608,93537.0,93525.0,0.25586302]
[1734977162531,0.3608,93537.0,93525.0,0.26670569]
[1734977162727,0.3608,93545.0,93528.0,0.36240348]
[1734977162936,0.3608,93545.0,93531.0,0.008]
[1734977163430,0.3608,93545.0,93529.0,0.2479]
[1734977164020,0.3608,93545.0,93530.0,0.13482799]
[1734977164223,0.3608,93545.0,93538.0,0.3608]
[1734977164425,0.3608,93545.0,93539.0,0.2525]
[1734977164632,0.3608,93545.0,93539.0,0.5044]
[1734977165234,0.001,93545.0,93539.0,0.5044]
[1734977165436,0.3608,93564.0,93546.0,0.053505]
[1734977165625,0.3608,93572.0,93550.0,0.3608]
[1734977166932,0.3618,93572.0,93550.0,0.3678]
[1734977167137,0.3618,93572.0,93551.0,0.053502]
[1734977167437,0.3618,93572.0,93550.0,0.50262799]
[1734977167635,0.3618,93572.0,93550.0,0.5136244]
[1734977167823,0.3618,93572.0,93550.0,0.5166244]
[1734977168434,0.3608,93572.0,93551.0,0.2402]
[1734977168740,0.3618,93572.0,93560.0,0.13482799]
[1734977169932,0.3618,93572.0,93562.0,0.053496]
[1734977170228,0.3618,93572.0,93568.0,0.3608]
[1734977170229,0.001,93572.0,93568.0,0.3608]
[1734977170437,0.2385,93598.0,93568.0,0.414293]
[1734977170737,0.10687528,93597.0,93570.0,0.13482799]
[1734977170937,0.10687528,93597.0,93568.0,0.414293]
[1734977170938,0.10687528,93597.0,93580.0,0.13482799]
[1734977171132,0.71089164,93600.0,93581.0,0.231]
[1734977171335,0.71033163,93600.0,93581.0,0.231]
[1734977171729,0.3608,93600.0,93581.0,0.157]
[1734977171930,0.001,93597.0,93590.0,0.13482799]
[1734977172129,0.001,93597.0,93591.0,0.2348]
[1734977172432,0.3608,93609.0,93591.0,0.2348]
[1734977172735,0.001,93600.0,93591.0,0.2348]
[1734977173136,0.3608,93609.0,93591.0,0.2348]
[1734977173326,0.3608,93600.0,93590.0,0.004]
[1734977173525,0.3608,93591.0,93590.0,0.004]
[1734977174031,0.76764274,93591.0,93561.0,0.2464032]
[1734977174239,0.3608,93578.0,93561.0,0.2464032]
[1734977175441,0.3608,93578.0,93561.0,0.2484032]
[1734977175632,0.3608,93578.0,93568.0,0.13482799]
[1734977175937,0.3618,93578.0,93568.0,0.13482799]
[1734977176638,0.3618,93578.0,93568.0,0.06082799]
[1734977177042,0.001,93578.0,93568.0,0.06082799]
[1734977177536,0.001,93578.0,93568.0,0.06782799]
[1734977178039,0.001,93578.0,93568.0,0.07082799]
[1734977178238,0.001,93578.0,93568.0,0.01]
[1734977178635,0.3608,93580.0,93568.0,0.003]
[1734977178835,0.3608,93572.0,93568.0,0.008]
[1734977180639,0.001,93578.0,93568.0,0.008]
[1734977180941,0.003,93572.0,93568.0,0.005]
[1734977181336,0.003,93572.0,93561.0,0.25696731]
[1734977181635,0.009,93572.0,93568.0,0.001]
[1734977181940,0.3608,93581.0,93568.0,0.004]
[1734977182140,0.3608,93581.0,93568.0,0.005]
[1734977182141,0.005,93572.0,93568.0,0.005]
[1734977182337,0.3658,93572.0,93568.0,0.005]
[1734977183232,0.3668,93572.0,93568.0,0.001]
[1734977183740,0.3648,93572.0,93557.0,0.35964]
[1734977183946,0.3608,93564.0,93557.0,0.35964]
[1734977184136,0.3608,93564.0,93540.0,0.591]
[1734977184137,0.3608,93564.0,93555.0,0.01357241]
[1734977184336,0.3608,93556.0,93540.0,0.2302]
[1734977185240,0.3608,93545.0,93537.0,0.2507]
[1734977185543,0.3608,93545.0,93522.0,0.3605]
[1734977185544,0.3608,93538.0,93506.0,0.3608]
[1734977185841,0.3608,93529.0,93506.0,0.3608]
[1734977186044,0.3608,93529.0,93506.0,0.37450912]
[1734977187638,0.3608,93529.0,93510.0,0.13482799]
[1734977188243,0.3608,93529.0,93506.0,0.37750912]
[1734977188541,0.3608,93521.0,93506.0,0.37750912]
[1734977188848,0.3608,93511.0,93506.0,0.01670912]
[1734977189140,0.3608,93511.0,93506.0,0.003]
[1734977189844,0.3608,93511.0,93506.0,0.002]
[1734977190146,0.3608,93511.0,93510.0,0.001]
[1734977190647,0.3608,93511.0,93503.0,0.01385808]
[1734977190834,0.3608,93511.0,93506.0,0.002]
[1734977191236,0.3608,93518.0,93506.0,0.001]
[1734977191438,0.3608,93518.0,93510.0,0.001]
[1734977192743,0.10693585,93517.0,93510.0,0.001]
[1734977192935,0.34193585,93517.0,93506.0,0.003]
[1734977193133,0.3608,93507.0,93506.0,0.002]
[1734977193331,0.3608,93507.0,93506.0,0.003]
[1734977193546,0.3608,93507.0,93506.0,0.001]
[1734977194031,0.3608,93507.0,93506.0,0.003]
[1734977194435,0.76774443,93507.0,93506.0,0.003]
[1734977194646,0.92767432,93507.0,93506.0,0.002]
[1734977194841,0.92767432,93507.0,93506.0,0.003]
[1734977195043,0.62767432,93507.0,93506.0,0.003]
[1734977195244,0.3608,93507.0,93506.0,0.003]
[1734977195642,0.235,93517.0,93506.0,0.003]
[1734977195934,0.3608,93518.0,93506.0,0.003]
[1734977196146,0.3608,93518.0,93506.0,0.001]
[1734977196338,0.001,93507.0,93501.0,0.4697]
[1734977196745,0.13482799,93511.0,93501.0,0.4831117]
[1734977196943,0.3608,93509.0,93500.0,0.1]
[1734977197145,0.3608,93501.0,93500.0,0.1]
[1734977199345,0.3608,93501.0,93500.0,0.102]
[1734977199647,0.3608,93509.0,93500.0,0.102]
[1734977199950,0.01340222,93518.0,93500.0,0.102]
[1734977200135,0.49562799,93520.0,93500.0,0.103]
[1734977200343,0.3608,93512.0,93500.0,0.103]
[1734977201251,0.3608,93519.0,93503.0,0.05353]
[1734977201554,0.3608,93519.0,93502.0,0.3608]
[1734977202349,0.13482799,93520.0,93502.0,0.3608]
[1734977203348,0.13482799,93520.0,93502.0,0.3628]
[1734977203848,0.13582799,93520.0,93502.0,0.3698]
[1734977204051,0.001,93520.0,93502.0,0.3698]
[1734977204239,0.001,93520.0,93502.0,0.3728]
[1734977204443,0.001,93520.0,93502.0,0.3738]
[1734977204642,0.13582799,93520.0,93502.0,0.013]
[1734977205948,0.001,93520.0,93502.0,0.012]
[1734977206461,0.3608,93522.0,93502.0,0.05353]
[1734977206660,0.001,93520.0,93510.0,0.13482799]
[1734977206849,0.001,93520.0,93511.0,0.4723]
[1734977207046,0.3608,93522.0,93511.0,0.4723]
[1734977207248,0.3608,93531.0,93515.0,0.053523]
[1734977207549,0.3608,93531.0,93511.0,0.8331]
[1734977207550,0.3608,93531.0,93522.0,0.414319]
[1734977207855,0.3608,93531.0,93523.0,0.2432]
[1734977208154,0.3608,93540.0,93530.0,0.3608]
[1734977208453,0.3608,93557.0,93539.0,0.3608]
[1734977208651,0.3608,93557.0,93540.0,0.60882799]
[1734977209354,0.3608,93557.0,93540.0,0.474]
[1734977209852,0.3608,93546.0,93531.0,0.3605]
[1734977210053,0.3608,93546.0,93524.0,0.4856]
[1734977210054,0.3608,93537.0,93524.0,0.4856]
[1734977210255,0.3608,93546.0,93530.0,0.3608]
[1734977210559,0.3608,93555.0,93539.0,0.3608]
[1734977210954,0.3608,93555.0,93540.0,0.053509]
[1734977211255,0.3608,93555.0,93539.0,0.3608]
[1734977211650,0.3608,93555.0,93536.0,0.13482799]
[1734977212056,0.3608,93555.0,93538.0,0.3608]
[1734977212651,0.3618,93555.0,93539.0,0.062509]
[1734977213162,0.3608,93555.0,93539.0,0.053509]
[1734977214967,0.3608,93555.0,93545.0,0.13482799]
[1734977215963,0.3608,93555.0,93546.0,0.2427]
[1734977216155,0.3618,93555.0,93546.0,0.2427]
[1734977216551,0.3628,93555.0,93546.0,0.2427]
[1734977216855,0.003,93555.0,93547.0,0.3608]
[1734977217050,0.003,93555.0,93548.0,0.2249]
[1734977219465,0.001,93555.0,93548.0,0.2249]
[1734977219661,0.003,93555.0,93548.0,0.2249]
[1734977220551,0.003,93555.0,93548.0,0.23768264]
[1734977220955,0.3608,93556.0,93548.0,0.23768264]
[1734977221255,0.004,93555.0,93548.0,0.23768264]
[1734977221663,0.3608,93591.0,93555.0,0.3605]
[1734977221857,0.3608,93609.0,93580.0,0.13482799]
[1734977221858,0.3608,93599.0,93580.0,0.13482799]
[1734977222063,0.3608,93599.0,93581.0,0.221]
[1734977222367,0.3608,93599.0,93589.0,0.08983971]
[1734977222867,0.3608,93608.0,93589.0,0.08983971]
[1734977223760,0.3608,93617.0,93598.0,0.08983971]
[1734977223964,0.3608,93617.0,93607.0,0.08983971]
[1734977224161,0.3608,93617.0,93607.0,0.13467207]
[1734977224363,0.3608,93617.0,93608.0,0.221]
[1734977225159,0.3638,93617.0,93608.0,0.221]
[1734977225657,0.3628,93617.0,93608.0,0.221]
[1734977225969,0.3668,93617.0,93608.0,0.221]
[1734977226774,0.3668,93617.0,93608.0,0.147]
[1734977226958,0.3668,93617.0,93596.0,0.2198]
[1734977227264,0.3608,93609.0,93582.0,0.59384]
[1734977227672,0.3608,93598.0,93582.0,0.00124]
[1734977227869,0.3608,93587.0,93580.0,0.13467207]
[1734977228570,0.3608,93587.0,93576.0,0.2865]
[1734977228773,0.3608,93587.0,93576.0,0.29963264]
[1734977228961,0.3608,93587.0,93580.0,0.002]
[1734977229161,0.3608,93598.0,93580.0,0.002]
[1734977229659,0.3608,93590.0,93580.0,0.002]
[1734977229857,0.3608,93581.0,93580.0,0.002]
[1734977230461,0.3608,93581.0,93580.0,0.001]
[1734977230668,0.3618,93587.0,93580.0,0.001]
[1734977231269,0.3608,93587.0,93576.0,0.01413264]
[1734977231465,0.3608,93579.0,93576.0,0.001]
[1734977231662,0.3608,93579.0,93563.0,0.2865]
[1734977231865,0.3608,93579.0,93569.0,0.13467207]
[1734977232065,0.32328833,93587.0,93581.0,0.053485]
[1734977232370,0.3608,93610.0,93584.0,0.3608]
[1734977232665,0.001,93587.0,93585.0,0.2249]
[1734977233271,0.001,93587.0,93584.0,0.3608]
[1734977234463,0.3608,93599.0,93584.0,0.3608]
[1734977234665,0.3618,93610.0,93584.0,0.3608]
[1734977234865,0.3608,93599.0,93589.0,0.13467207]
[1734977235173,0.3618,93610.0,93598.0,0.3608]
[1734977235366,0.3608,93610.0,93600.0,0.13467207]
[1734977235561,0.3608,93610.0,93600.0,0.26934414]
[1734977235965,0.3608,93629.0,93600.0,0.26934414]
[1734977236168,0.3608,93629.0,93610.0,0.13467207]
[1734977236370,0.3608,93621.0,93609.0,0.3608]
[1734977236575,0.3608,93613.0,93601.0,0.2865]
[1734977236870,0.3608,93621.0,93601.0,0.2125]
[1734977237170,0.3608,93621.0,93610.0,0.13467207]
[1734977237473,0.3608,93621.0,93611.0,0.053468]
[1734977237673,0.3608,93621.0,93610.0,0.13467207]
[1734977238474,0.3638,93621.0,93610.0,0.13467207]
[1734977238978,0.3628,93621.0,93610.0,0.13467207]
[1734977239677,0.002,93621.0,93613.0,0.053467]
[1734977239872,0.2279,93654.0,93618.0,0.3608]
[1734977240174,0.2248,93659.0,93640.0,0.13467207]
[1734977240580,0.2248,93659.0,93649.0,0.13467207]
[1734977240768,0.3608,93660.0,93649.0,0.13467207]
[1734977241275,0.3608,93672.0,93651.0,0.5733]
[1734977241473,0.3608,93672.0,93662.0,0.13467207]
[1734977241672,0.3608,93672.0,93662.0,0.06067207]
[1734977241874,0.3608,93682.0,93662.0,0.06067207]
[1734977242964,0.3608,93682.0,93670.0,0.13467207]
[1734977243369,0.3608,93691.0,93670.0,0.13467207]
[1734977243370,0.3608,93691.0,93676.0,0.3608]
[1734977243565,0.3608,93691.0,93681.0,0.13467207]
[1734977243870,0.3608,93691.0,93680.0,0.13467207]
[1734977244271,0.1,93700.0,93685.0,0.3608]
[1734977244479,0.1,93700.0,93690.0,0.13467207]
[1734977244779,0.1,93700.0,93699.0,0.3608]
[1734977245077,0.3608,93728.0,93699.0,0.3608]
[1734977245272,0.3608,93728.0,93712.0,0.3608]
[1734977245473,0.01242884,93729.0,93720.0,0.3608]
[1734977245673,0.3608,93725.0,93712.0,0.3608]
[1734977245879,0.3608,93717.0,93700.0,0.13467207]
[1734977246181,0.005,93700.0,93690.0,0.14706713]
[1734977246372,0.005,93700.0,93682.0,0.3608]
[1734977246767,0.3608,93692.0,93682.0,0.3608]
[1734977246972,0.3608,93692.0,93680.0,0.00160099]
[1734977247582,0.3608,93683.0,93680.0,0.00160099]
[1734977248981,0.3628,93683.0,93680.0,0.00160099]
[1734977249577,0.002,93683.0,93680.0,0.00160099]
[1734977249776,0.004,93683.0,93680.0,0.00160099]
[1734977250683,0.01,93683.0,93680.0,0.00160099]
[1734977250977,0.007,93683.0,93680.0,0.00160099]